[Event "*** Titled Tuesday Blitz"]
[Site "Chess.com"]
[Date "2019.02.05"]
[Round "6"]
[White "Polish_fighter3000"]
[Black "GataKamsky1974"]
[Result "1-0"]
[WhiteElo "3010"]
[BlackElo "2735"]
[TimeControl "180+2"]
[EndTime "14:23:37 PST"]
[Termination "Polish_fighter3000 won by resignation"]

1. e4 {[%clk 0:03:01.9]} 1... e5 {[%clk 0:03:00]} 2. Nf3 {[%clk 0:03:02.2]} 2...
Nc6 {[%clk 0:03:01.6]} 3. Bc4 {[%clk 0:03:03.8]} 3... Bc5 {[%clk 0:03:02.4]} 4.
d3 {[%clk 0:03:04.4]} 4... Nf6 {[%clk 0:03:03.4]} 5. c3 {[%clk 0:03:06]} 5... a6
{[%clk 0:03:04.2]} 6. Bb3 {[%clk 0:03:06.1]} 6... Ba7 {[%clk 0:03:05.6]} 7. Nbd2
{[%clk 0:03:07.4]} 7... d6 {[%clk 0:03:06.7]} 8. Nf1 {[%clk 0:03:05.3]} 8... Ng4
{[%clk 0:02:53.5]} 9. d4 {[%clk 0:03:05.5]} 9... O-O {[%clk 0:02:51.7]} 10. Ng3
{[%clk 0:03:03.2]} 10... Qf6 {[%clk 0:02:38.1]} 11. h3 {[%clk 0:02:41.3]} 11...
Nh6 {[%clk 0:02:34.9]} 12. Bg5 {[%clk 0:02:35.4]} 12... Qg6 {[%clk 0:02:27.9]}
13. Qd2 {[%clk 0:02:28.4]} 13... Na5 {[%clk 0:02:24.5]} 14. Bd5 {[%clk
0:02:27.7]} 14... c6 {[%clk 0:02:09.6]} 15. Nh4 {[%clk 0:02:25.9]} 15... cxd5
{[%clk 0:01:55]} 16. Nxg6 {[%clk 0:02:26.2]} 16... fxg6 {[%clk 0:01:56.4]} 17.
b3 {[%clk 0:02:06.5]} 17... exd4 {[%clk 0:01:55.2]} 18. O-O {[%clk 0:02:06.2]}
18... Nf7 {[%clk 0:01:52.9]} 19. cxd4 {[%clk 0:02:02.1]} 19... Nc6 {[%clk
0:01:52.3]} 20. exd5 {[%clk 0:01:58.8]} 20... Nxg5 {[%clk 0:01:46.4]} 21. dxc6
{[%clk 0:01:57.5]} 21... Ne6 {[%clk 0:01:47.4]} 22. d5 {[%clk 0:01:55.4]} 22...
Nd4 {[%clk 0:01:41.9]} 23. Ne2 {[%clk 0:01:52.3]} 23... Nf5 {[%clk 0:01:24.8]}
24. cxb7 {[%clk 0:01:52.8]} 24... Bxb7 {[%clk 0:01:25]} 25. Rac1 {[%clk
0:01:54.3]} 25... Rf7 {[%clk 0:01:22]} 26. Nf4 {[%clk 0:01:52.6]} 26... Ng3
{[%clk 0:01:12.6]} 27. Rfe1 {[%clk 0:01:37.8]} 27... Raf8 {[%clk 0:01:12.9]} 28.
Kh2 {[%clk 0:01:35.8]} 28... Rxf4 {[%clk 0:01:08.3]} 29. fxg3 {[%clk 0:01:36.7]}
29... Rd4 {[%clk 0:01:09.2]} 30. Qe2 {[%clk 0:01:31.4]} 30... Bxd5 {[%clk
0:01:08.8]} 31. Rc7 {[%clk 0:01:28.3]} 31... Bb6 {[%clk 0:01:08.3]} 32. Rd7
{[%clk 0:01:25.1]} 32... Re4 {[%clk 0:00:41.4]} 33. Qxe4 {[%clk 0:01:17.7]}
33... Bxe4 {[%clk 0:00:42.3]} 34. Rxe4 {[%clk 0:01:19.6]} 34... h5 {[%clk
0:00:29.3]} 35. Rxd6 {[%clk 0:01:17.7]} 35... Bc5 {[%clk 0:00:30.5]} 36. Rc6
{[%clk 0:01:17.9]} 36... Bf2 {[%clk 0:00:21.2]} 37. Rxa6 {[%clk 0:01:17.3]}
37... Rd8 {[%clk 0:00:21.6]} 38. Re2 {[%clk 0:01:16]} 38... Bc5 {[%clk
0:00:19.9]} 39. Rc6 {[%clk 0:01:15.7]} 39... Ba7 {[%clk 0:00:21]} 40. Re7 {[%clk
0:01:11.4]} 40... Bf2 {[%clk 0:00:21.4]} 41. Rxg6 {[%clk 0:01:12.6]} 41... Rd1
{[%clk 0:00:20.4]} 42. Rgxg7+ {[%clk 0:01:13.9]} 42... Kh8 {[%clk 0:00:21.7]}
43. Rh7+ {[%clk 0:01:15.4]} 43... Kg8 {[%clk 0:00:23.1]} 44. Reg7+ {[%clk
0:01:16.9]} 44... Kf8 {[%clk 0:00:24.3]} 45. Rf7+ {[%clk 0:01:18.5]} 45... Kg8
{[%clk 0:00:25.8]} 46. Rxf2 {[%clk 0:01:19.5]} 46... Kxh7 {[%clk 0:00:27.4]} 47.
Rf5 {[%clk 0:01:16.2]} 47... Kg6 {[%clk 0:00:27.8]} 48. Rb5 {[%clk 0:01:17.6]}
48... Ra1 {[%clk 0:00:27.2]} 49. a4 {[%clk 0:01:18.9]} 49... Kh6 {[%clk
0:00:26.8]} 50. a5 {[%clk 0:01:20.1]} 50... Kg6 {[%clk 0:00:27.4]} 51. b4 {[%clk
0:01:21.6]} 51... Kh6 {[%clk 0:00:28.7]} 52. Rb6+ {[%clk 0:01:18.9]} 52... Kg5
{[%clk 0:00:29.9]} 53. a6 {[%clk 0:01:20.4]} 1-0

[Event "*** Titled Tuesday Blitz"]
[Site "Chess.com"]
[Date "2019.02.05"]
[Round "6"]
[White "vgyogi"]
[Black "Shivagami"]
[Result "0-1"]
[WhiteElo "2130"]
[BlackElo "2151"]
[TimeControl "180+2"]
[EndTime "14:23:44 PST"]
[Termination "Shivagami won by resignation"]

1. d4 {[%clk 0:03:00.7]} 1... d5 {[%clk 0:02:58.9]} 2. Bf4 {[%clk 0:03:00]} 2...
Nf6 {[%clk 0:02:58.9]} 3. e3 {[%clk 0:03:01]} 3... c5 {[%clk 0:02:59.1]} 4. Nd2
{[%clk 0:03:02.2]} 4... Qb6 {[%clk 0:02:54.6]} 5. dxc5 {[%clk 0:02:58.6]} 5...
Qxb2 {[%clk 0:02:53.2]} 6. Ngf3 {[%clk 0:02:55.3]} 6... Nc6 {[%clk 0:02:47]} 7.
c4 {[%clk 0:02:48.5]} 7... Bf5 {[%clk 0:02:08.4]} 8. cxd5 {[%clk 0:02:19.7]}
8... Nxd5 {[%clk 0:02:08.3]} 9. Qc1 {[%clk 0:01:37.2]} 9... Qxc1+ {[%clk
0:01:46.1]} 10. Rxc1 {[%clk 0:01:38]} 10... Ncb4 {[%clk 0:01:47.6]} 11. Bb5+
{[%clk 0:01:30.8]} 11... Bd7 {[%clk 0:01:37]} 12. Bxd7+ {[%clk 0:01:27.6]} 12...
Kxd7 {[%clk 0:01:37.7]} 13. O-O {[%clk 0:01:25.8]} 13... f6 {[%clk 0:01:31.4]}
14. Rfd1 {[%clk 0:01:20.5]} 14... Nd3 {[%clk 0:01:23]} 15. Rb1 {[%clk
0:01:14.7]} 15... Kc8 {[%clk 0:01:14.7]} 16. Bg3 {[%clk 0:01:07.7]} 16... Nc3
{[%clk 0:01:13.2]} 17. Nc4 {[%clk 0:01:01.9]} 17... Nxd1 {[%clk 0:01:09.8]} 18.
Rxd1 {[%clk 0:01:01.6]} 18... Nxc5 {[%clk 0:01:11.2]} 19. Rc1 {[%clk 0:01:02.2]}
19... e5 {[%clk 0:01:09.8]} 20. Nfd2 {[%clk 0:00:53.3]} 20... Kd7 {[%clk
0:00:55.1]} 21. f4 {[%clk 0:00:54.2]} 21... exf4 {[%clk 0:00:51.7]} 22. exf4
{[%clk 0:00:51.3]} 22... Be7 {[%clk 0:00:47.6]} 23. Nf3 {[%clk 0:00:46.1]} 23...
Kc7 {[%clk 0:00:37.7]} 24. f5+ {[%clk 0:00:44.7]} 24... Kc6 {[%clk 0:00:33.6]}
25. Nd4+ {[%clk 0:00:45.1]} 25... Kd5 {[%clk 0:00:32.5]} 26. Ne6 {[%clk
0:00:45]} 26... Nxe6 {[%clk 0:00:30.9]} 27. fxe6 {[%clk 0:00:41.8]} 27... Rac8
{[%clk 0:00:27.2]} 28. Ne3+ {[%clk 0:00:39.5]} 28... Kxe6 {[%clk 0:00:27.1]} 29.
Re1 {[%clk 0:00:33]} 29... Kf7 {[%clk 0:00:25.4]} 30. Nd5 {[%clk 0:00:32.1]}
30... Bc5+ {[%clk 0:00:25.8]} 31. Kh1 {[%clk 0:00:33]} 31... Rhd8 {[%clk
0:00:25.4]} 32. Nf4 {[%clk 0:00:30.2]} 32... Re8 {[%clk 0:00:25.7]} 33. Rf1
{[%clk 0:00:30.6]} 33... Rcd8 {[%clk 0:00:26]} 34. h3 {[%clk 0:00:31.8]} 34...
Rd2 {[%clk 0:00:25.6]} 35. Rc1 {[%clk 0:00:30.3]} 35... b6 {[%clk 0:00:25]} 36.
a4 {[%clk 0:00:26.1]} 36... Red8 {[%clk 0:00:24.1]} 37. Kh2 {[%clk 0:00:23.9]}
37... Rd1 {[%clk 0:00:24.9]} 38. Rxd1 {[%clk 0:00:20.5]} 38... Rxd1 {[%clk
0:00:26.8]} 0-1

[Event "*** Titled Tuesday Blitz"]
[Site "Chess.com"]
[Date "2019.02.05"]
[Round "6"]
[White "gmcorrales"]
[Black "mishanick"]
[Result "1-0"]
[WhiteElo "2756"]
[BlackElo "3000"]
[TimeControl "180+2"]
[EndTime "14:23:46 PST"]
[Termination "gmcorrales won by resignation"]

1. e4 {[%clk 0:03:01.9]} 1... c5 {[%clk 0:03:00.1]} 2. Nf3 {[%clk 0:02:58.9]}
2... d6 {[%clk 0:03:01.1]} 3. d4 {[%clk 0:02:59.6]} 3... cxd4 {[%clk 0:03:03]}
4. Nxd4 {[%clk 0:03:01.3]} 4... Nf6 {[%clk 0:03:03.6]} 5. f3 {[%clk 0:03:02.2]}
5... e5 {[%clk 0:02:58.8]} 6. Nb3 {[%clk 0:03:02.8]} 6... Be6 {[%clk 0:02:55.9]}
7. c4 {[%clk 0:03:03.3]} 7... Nbd7 {[%clk 0:02:54.9]} 8. Nc3 {[%clk 0:03:03.7]}
8... Rc8 {[%clk 0:02:55]} 9. Be3 {[%clk 0:03:04.2]} 9... Bxc4 {[%clk 0:02:55.4]}
10. Bxc4 {[%clk 0:03:05.5]} 10... Rxc4 {[%clk 0:02:57.3]} 11. Qd3 {[%clk
0:03:07.1]} 11... Rc6 {[%clk 0:02:55.1]} 12. Bxa7 {[%clk 0:03:05.7]} 12... Be7
{[%clk 0:02:53.7]} 13. a4 {[%clk 0:03:03.6]} 13... O-O {[%clk 0:02:49.9]} 14.
Be3 {[%clk 0:03:01.9]} 14... Qa8 {[%clk 0:02:43.2]} 15. O-O {[%clk 0:02:59.3]}
15... Rfc8 {[%clk 0:02:44.6]} 16. Rfd1 {[%clk 0:02:54.7]} 16... Nb6 {[%clk
0:02:45.1]} 17. Bxb6 {[%clk 0:02:08.7]} 17... Rxb6 {[%clk 0:02:42.5]} 18. Nb5
{[%clk 0:02:10.3]} 18... Rbc6 {[%clk 0:02:16]} 19. Nc3 {[%clk 0:02:06.9]} 19...
Bd8 {[%clk 0:02:05.3]} 20. a5 {[%clk 0:02:02.2]} 20... Ra6 {[%clk 0:01:57.2]}
21. Qb5 {[%clk 0:01:47.3]} 21... h5 {[%clk 0:01:35.9]} 22. Qb4 {[%clk
0:01:12.3]} 22... Rcc6 {[%clk 0:01:26.8]} 23. h3 {[%clk 0:01:02.9]} 23... h4
{[%clk 0:01:24.2]} 24. Kh2 {[%clk 0:01:04]} 24... Qc8 {[%clk 0:01:16.4]} 25. Rd2
{[%clk 0:01:04.3]} 25... Nh5 {[%clk 0:00:53.1]} 26. Nd5 {[%clk 0:01:01.9]} 26...
Bg5 {[%clk 0:00:53.7]} 27. Rad1 {[%clk 0:00:58.7]} 27... Nf4 {[%clk 0:00:50.5]}
28. Nb6 {[%clk 0:00:56.8]} 28... Qc7 {[%clk 0:00:35.4]} 29. Rxd6 {[%clk
0:00:49.8]} 29... Rc2 {[%clk 0:00:36.2]} 30. R1d2 {[%clk 0:00:41.9]} 30... Rxd2
{[%clk 0:00:16.7]} 31. Qxd2 {[%clk 0:00:38.5]} 31... Nxh3 {[%clk 0:00:17.6]} 32.
Qd5 {[%clk 0:00:25.7]} 32... Nf2 {[%clk 0:00:17.9]} 33. Rd7 {[%clk 0:00:16.4]}
33... Bf4+ {[%clk 0:00:15.5]} 34. Kg1 {[%clk 0:00:14.4]} 34... Qxd7 {[%clk
0:00:10.1]} 35. Qxd7 {[%clk 0:00:15.5]} 35... Be3 {[%clk 0:00:10.5]} 36. Kf1
{[%clk 0:00:15.7]} 36... Nh1 {[%clk 0:00:11.2]} 37. Qd8+ {[%clk 0:00:16.3]}
37... Kh7 {[%clk 0:00:11.5]} 38. Qxh4+ {[%clk 0:00:17.8]} 38... Kg6 {[%clk
0:00:13.2]} 39. Qxh1 {[%clk 0:00:19.7]} 1-0

[Event "*** Titled Tuesday Blitz"]
[Site "Chess.com"]
[Date "2019.02.05"]
[Round "6"]
[White "Maikrosoft63"]
[Black "ajkom197"]
[Result "1-0"]
[WhiteElo "2568"]
[BlackElo "2431"]
[TimeControl "180+2"]
[EndTime "14:23:47 PST"]
[Termination "Maikrosoft63 won by resignation"]

1. e4 {[%clk 0:03:01.9]} 1... c6 {[%clk 0:02:58.5]} 2. d4 {[%clk 0:03:01.9]}
2... d5 {[%clk 0:02:59]} 3. exd5 {[%clk 0:03:02.9]} 3... cxd5 {[%clk 0:02:58.2]}
4. Bf4 {[%clk 0:03:04.4]} 4... Nc6 {[%clk 0:02:58.5]} 5. c3 {[%clk 0:03:05.4]}
5... Nf6 {[%clk 0:02:56.2]} 6. Nd2 {[%clk 0:03:05.9]} 6... Bf5 {[%clk
0:02:55.3]} 7. Qb3 {[%clk 0:03:06.7]} 7... Qc8 {[%clk 0:02:55]} 8. Ngf3 {[%clk
0:03:07.5]} 8... a6 {[%clk 0:02:55.1]} 9. h3 {[%clk 0:02:55.5]} 9... e6 {[%clk
0:02:53.4]} 10. Nh4 {[%clk 0:02:56]} 10... Be4 {[%clk 0:02:50.8]} 11. Nxe4
{[%clk 0:02:55.8]} 11... Nxe4 {[%clk 0:02:51.3]} 12. Nf3 {[%clk 0:02:54.3]}
12... Bd6 {[%clk 0:02:48.4]} 13. Be3 {[%clk 0:02:51.5]} 13... O-O {[%clk
0:02:47.6]} 14. Bd3 {[%clk 0:02:52.4]} 14... f5 {[%clk 0:02:48.2]} 15. O-O
{[%clk 0:02:51.4]} 15... b5 {[%clk 0:02:47.4]} 16. Rae1 {[%clk 0:02:46.5]} 16...
Na5 {[%clk 0:02:21.5]} 17. Qc2 {[%clk 0:02:44.5]} 17... Qd7 {[%clk 0:02:18.3]}
18. Ne5 {[%clk 0:02:44.7]} 18... Bxe5 {[%clk 0:02:17.9]} 19. dxe5 {[%clk
0:02:46.6]} 19... Rac8 {[%clk 0:02:15.3]} 20. f3 {[%clk 0:02:25.7]} 20... Ng3
{[%clk 0:02:03.4]} 21. Rf2 {[%clk 0:02:22.8]} 21... Nc4 {[%clk 0:01:57.1]} 22.
Bd4 {[%clk 0:02:16.9]} 22... h6 {[%clk 0:01:55.2]} 23. Kh2 {[%clk 0:01:56.6]}
23... Nh5 {[%clk 0:01:51.9]} 24. f4 {[%clk 0:01:50.1]} 24... g6 {[%clk
0:01:49.2]} 25. b3 {[%clk 0:01:41.7]} 25... Na5 {[%clk 0:01:49]} 26. Qd2 {[%clk
0:01:41]} 26... Nc6 {[%clk 0:01:47.7]} 27. Bc5 {[%clk 0:01:34.2]} 27... Rf7
{[%clk 0:01:47.7]} 28. Bd6 {[%clk 0:01:34.9]} 28... Kh7 {[%clk 0:01:46.3]} 29.
c4 {[%clk 0:01:29.8]} 29... bxc4 {[%clk 0:01:37.8]} 30. bxc4 {[%clk 0:01:30.8]}
30... d4 {[%clk 0:01:39.2]} 31. c5 {[%clk 0:01:30.5]} 31... Qd8 {[%clk
0:01:29.4]} 32. Bxa6 {[%clk 0:01:23.2]} 32... Ra8 {[%clk 0:01:28.4]} 33. Bb5
{[%clk 0:01:23.7]} 33... Ne7 {[%clk 0:01:26.8]} 34. Qxd4 {[%clk 0:01:18.6]}
34... Nd5 {[%clk 0:01:23.2]} 35. Bc6 {[%clk 0:01:16.1]} 35... Ra3 {[%clk
0:01:14.7]} 36. Bxd5 {[%clk 0:01:16]} 36... exd5 {[%clk 0:01:15.4]} 37. e6
{[%clk 0:01:08.5]} 37... Qh4 {[%clk 0:01:04.7]} 38. exf7 {[%clk 0:00:43]} 38...
Rxh3+ {[%clk 0:01:02.2]} 39. gxh3 {[%clk 0:00:44.4]} 39... Qg3+ {[%clk
0:01:02.1]} 40. Kh1 {[%clk 0:00:45.6]} 40... Qxh3+ {[%clk 0:01:03.4]} 41. Kg1
{[%clk 0:00:45.1]} 41... Ng3 {[%clk 0:01:00.4]} 42. Qh8+ {[%clk 0:00:40.7]} 1-0

[Event "*** Titled Tuesday Blitz"]
[Site "Chess.com"]
[Date "2019.02.05"]
[Round "6"]
[White "HElissalt"]
[Black "flomarechot"]
[Result "1-0"]
[WhiteElo "2120"]
[BlackElo "2060"]
[TimeControl "180+2"]
[EndTime "14:23:54 PST"]
[Termination "HElissalt won by checkmate"]

1. d4 {[%clk 0:03:01.9]} 1... Nf6 {[%clk 0:03:00.2]} 2. c4 {[%clk 0:03:01.6]}
2... g6 {[%clk 0:03:01.4]} 3. Nc3 {[%clk 0:03:01.9]} 3... Bg7 {[%clk 0:03:02.9]}
4. e4 {[%clk 0:03:03]} 4... d6 {[%clk 0:03:04.3]} 5. Be2 {[%clk 0:03:04.1]} 5...
O-O {[%clk 0:03:04.7]} 6. Be3 {[%clk 0:03:05.1]} 6... e5 {[%clk 0:02:58.5]} 7.
d5 {[%clk 0:03:05.6]} 7... a5 {[%clk 0:02:57.7]} 8. g4 {[%clk 0:03:06]} 8... Na6
{[%clk 0:02:53.5]} 9. h4 {[%clk 0:03:04.6]} 9... Nd7 {[%clk 0:02:45.7]} 10. h5
{[%clk 0:03:01.2]} 10... Ndc5 {[%clk 0:02:45.1]} 11. hxg6 {[%clk 0:02:58.5]}
11... fxg6 {[%clk 0:02:45.1]} 12. Nh3 {[%clk 0:02:40]} 12... Bd7 {[%clk
0:02:22.3]} 13. f3 {[%clk 0:02:27.6]} 13... c6 {[%clk 0:02:10.4]} 14. dxc6
{[%clk 0:02:15.5]} 14... Bxc6 {[%clk 0:02:09.6]} 15. Nd5 {[%clk 0:02:14.6]}
15... Nb4 {[%clk 0:01:20.7]} 16. Nf2 {[%clk 0:02:11.4]} 16... Nxd5 {[%clk
0:01:13.4]} 17. exd5 {[%clk 0:02:00.9]} 17... Bd7 {[%clk 0:01:03.8]} 18. Bxc5
{[%clk 0:01:36]} 18... dxc5 {[%clk 0:01:03.5]} 19. Ne4 {[%clk 0:01:37]} 19...
Qb6 {[%clk 0:00:54]} 20. Qd2 {[%clk 0:01:36]} 20... Rf4 {[%clk 0:00:53.7]} 21.
O-O-O {[%clk 0:01:14.5]} 21... Bxg4 {[%clk 0:00:50.1]} 22. Ng5 {[%clk
0:01:14.3]} 22... Rd4 {[%clk 0:00:34.7]} 23. Qe3 {[%clk 0:01:04.7]} 23... Bh5
{[%clk 0:00:34.2]} 24. Ne6 {[%clk 0:01:00.8]} 24... Rxd1+ {[%clk 0:00:33.8]} 25.
Bxd1 {[%clk 0:00:59.2]} 25... Bf6 {[%clk 0:00:33]} 26. Bc2 {[%clk 0:00:56.8]}
26... e4 {[%clk 0:00:33]} 27. b3 {[%clk 0:00:53.2]} 27... Qb4 {[%clk 0:00:31.4]}
28. fxe4 {[%clk 0:00:28.3]} 28... Qa3+ {[%clk 0:00:23.7]} 29. Kd2 {[%clk
0:00:28.5]} 29... Qb4+ {[%clk 0:00:24.3]} 30. Kc1 {[%clk 0:00:23.6]} 30... a4
{[%clk 0:00:25.7]} 31. e5 {[%clk 0:00:22.4]} 31... axb3 {[%clk 0:00:26.9]} 32.
Bxb3 {[%clk 0:00:21]} 32... Bd8 {[%clk 0:00:12.9]} 33. Kc2 {[%clk 0:00:18.9]}
33... b5 {[%clk 0:00:13]} 34. Qh6 {[%clk 0:00:19.2]} 34... Bf6 {[%clk
0:00:10.5]} 35. exf6 {[%clk 0:00:19.3]} 35... Rxa2+ {[%clk 0:00:05.7]} 36. Bxa2
{[%clk 0:00:18.3]} 36... Qa4+ {[%clk 0:00:07.1]} 37. Bb3 {[%clk 0:00:19.5]}
37... Qa7 {[%clk 0:00:07.2]} 38. Qf8# {[%clk 0:00:19.9]} 1-0

[Event "*** Titled Tuesday Blitz"]
[Site "Chess.com"]
[Date "2019.02.05"]
[Round "6"]
[White "Supelyel"]
[Black "andy_rekt"]
[Result "0-1"]
[WhiteElo "2319"]
[BlackElo "2184"]
[TimeControl "180+2"]
[EndTime "14:23:54 PST"]
[Termination "andy_rekt won by resignation"]

1. c4 {[%clk 0:03:01.9]} 1... e5 {[%clk 0:03:00.4]} 2. Nc3 {[%clk 0:03:01.7]}
2... Nf6 {[%clk 0:03:01.8]} 3. Nf3 {[%clk 0:03:01.9]} 3... Nc6 {[%clk
0:03:01.4]} 4. g3 {[%clk 0:03:02.9]} 4... Bb4 {[%clk 0:02:58.5]} 5. Bg2 {[%clk
0:02:58.4]} 5... O-O {[%clk 0:02:59.5]} 6. Nd5 {[%clk 0:02:57.7]} 6... Re8
{[%clk 0:02:56.9]} 7. Nxb4 {[%clk 0:02:49.1]} 7... Nxb4 {[%clk 0:02:58.8]} 8.
O-O {[%clk 0:02:50]} 8... d5 {[%clk 0:02:56.6]} 9. a3 {[%clk 0:02:45.2]} 9...
Nc6 {[%clk 0:02:56.8]} 10. cxd5 {[%clk 0:02:44.6]} 10... Nxd5 {[%clk 0:02:58.6]}
11. d3 {[%clk 0:02:44.5]} 11... Bg4 {[%clk 0:02:57.5]} 12. Bg5 {[%clk
0:02:14.1]} 12... Qd7 {[%clk 0:02:55.1]} 13. Re1 {[%clk 0:02:09.2]} 13... Nd4
{[%clk 0:02:52.3]} 14. Rc1 {[%clk 0:01:32.6]} 14... Bxf3 {[%clk 0:02:44.3]} 15.
exf3 {[%clk 0:01:32.6]} 15... Qf5 {[%clk 0:02:44.8]} 16. Be3 {[%clk 0:01:27.5]}
16... c6 {[%clk 0:02:35.9]} 17. b4 {[%clk 0:01:14.3]} 17... Rad8 {[%clk
0:02:32.1]} 18. Bxd4 {[%clk 0:01:15]} 18... exd4 {[%clk 0:02:32.6]} 19. Qd2
{[%clk 0:01:13.1]} 19... Nc3 {[%clk 0:02:30.5]} 20. f4 {[%clk 0:01:08.6]} 20...
g6 {[%clk 0:02:24.2]} 21. Bf3 {[%clk 0:01:07.8]} 21... Kf8 {[%clk 0:01:58.6]}
22. Kg2 {[%clk 0:01:08.6]} 22... Rxe1 {[%clk 0:01:58.9]} 23. Rxe1 {[%clk
0:01:08.8]} 23... Re8 {[%clk 0:02:00.5]} 24. Rc1 {[%clk 0:00:45.5]} 24... h5
{[%clk 0:01:59.3]} 25. h3 {[%clk 0:00:45.9]} 25... Qf6 {[%clk 0:01:56.6]} 26. g4
{[%clk 0:00:46.4]} 26... h4 {[%clk 0:01:50.6]} 27. f5 {[%clk 0:00:44]} 27...
gxf5 {[%clk 0:01:45.1]} 28. Qf4 {[%clk 0:00:43.6]} 28... Kg7 {[%clk 0:01:33]}
29. g5 {[%clk 0:00:34.1]} 29... Qg6 {[%clk 0:01:34]} 30. Qxh4 {[%clk 0:00:34]}
30... f6 {[%clk 0:01:31.3]} 31. Bh5 {[%clk 0:00:33.4]} 31... Qxg5+ {[%clk
0:01:30.9]} 32. Qxg5+ {[%clk 0:00:34.4]} 32... fxg5 {[%clk 0:01:32]} 33. Bxe8
{[%clk 0:00:36.3]} 33... Ne2 {[%clk 0:01:30.8]} 34. Rc5 {[%clk 0:00:35.9]} 34...
Kf6 {[%clk 0:01:27.5]} 35. Kf3 {[%clk 0:00:36.2]} 35... Nf4 {[%clk 0:01:28.1]}
36. h4 {[%clk 0:00:36.8]} 36... Nxd3 {[%clk 0:01:25.5]} 37. hxg5+ {[%clk
0:00:38.2]} 37... Kxg5 {[%clk 0:01:24.5]} 38. Rc4 {[%clk 0:00:39.5]} 38... Ne5+
{[%clk 0:01:24.9]} 39. Ke2 {[%clk 0:00:38.5]} 39... Nxc4 {[%clk 0:01:26.8]} 40.
Kd3 {[%clk 0:00:39.6]} 40... Nd6 {[%clk 0:01:27.2]} 41. Bd7 {[%clk 0:00:38.3]}
41... Kf4 {[%clk 0:01:19.9]} 42. Kxd4 {[%clk 0:00:38.4]} 42... Nb5+ {[%clk
0:01:18.3]} 43. Kc5 {[%clk 0:00:30.6]} 43... Nxa3 {[%clk 0:01:19.1]} 44. Kd6
{[%clk 0:00:31.9]} 44... Nc2 {[%clk 0:01:17.6]} 45. Kc5 {[%clk 0:00:32.8]} 45...
Ke5 {[%clk 0:01:11.9]} 46. Bc8 {[%clk 0:00:33.5]} 46... b6+ {[%clk 0:01:09.4]}
47. Kc4 {[%clk 0:00:33.8]} 47... f4 {[%clk 0:01:07.2]} 48. Bb7 {[%clk
0:00:31.1]} 48... Kd6 {[%clk 0:01:05.4]} 49. Bc8 {[%clk 0:00:31.1]} 49... c5
{[%clk 0:00:53.8]} 50. b5 {[%clk 0:00:26.2]} 50... Na3+ {[%clk 0:00:52.6]} 0-1

[Event "*** Titled Tuesday Blitz"]
[Site "Chess.com"]
[Date "2019.02.05"]
[Round "6"]
[White "Jospem"]
[Black "CaptainCasanova"]
[Result "0-1"]
[WhiteElo "2876"]
[BlackElo "2784"]
[TimeControl "180+2"]
[EndTime "14:23:55 PST"]
[Termination "CaptainCasanova won by checkmate"]

1. c4 {[%clk 0:03:01.9]} 1... Nf6 {[%clk 0:02:40.3]} 2. Nf3 {[%clk 0:03:02.8]}
2... g6 {[%clk 0:02:37.9]} 3. g3 {[%clk 0:03:04.3]} 3... Bg7 {[%clk 0:02:39.2]}
4. Bg2 {[%clk 0:03:06.2]} 4... O-O {[%clk 0:02:40]} 5. O-O {[%clk 0:03:08.1]}
5... d6 {[%clk 0:02:41.3]} 6. d4 {[%clk 0:03:09]} 6... Nc6 {[%clk 0:02:41.7]} 7.
Nc3 {[%clk 0:03:10.4]} 7... Bf5 {[%clk 0:02:40.8]} 8. Nh4 {[%clk 0:02:36.5]}
8... Bd7 {[%clk 0:02:40.6]} 9. e4 {[%clk 0:02:37.3]} 9... e5 {[%clk 0:02:35.3]}
10. d5 {[%clk 0:02:34.2]} 10... Nd4 {[%clk 0:02:36.6]} 11. Ne2 {[%clk
0:02:19.7]} 11... Re8 {[%clk 0:02:23.6]} 12. Be3 {[%clk 0:02:13.1]} 12... Ng4
{[%clk 0:02:10.2]} 13. Nxd4 {[%clk 0:02:02]} 13... Nxe3 {[%clk 0:02:05]} 14.
fxe3 {[%clk 0:02:03.9]} 14... exd4 {[%clk 0:02:06.6]} 15. exd4 {[%clk
0:02:05.8]} 15... Qg5 {[%clk 0:01:58.9]} 16. Qd3 {[%clk 0:02:01.3]} 16... c6
{[%clk 0:01:44.6]} 17. Nf3 {[%clk 0:01:38.7]} 17... Qd8 {[%clk 0:01:44.5]} 18.
dxc6 {[%clk 0:01:34.6]} 18... bxc6 {[%clk 0:01:45.3]} 19. Rae1 {[%clk
0:01:34.9]} 19... Qb6 {[%clk 0:01:45.9]} 20. b3 {[%clk 0:01:34.5]} 20... Bg4
{[%clk 0:01:44]} 21. Kh1 {[%clk 0:01:06]} 21... Re7 {[%clk 0:01:22.5]} 22. e5
{[%clk 0:01:02.8]} 22... Rae8 {[%clk 0:00:56]} 23. exd6 {[%clk 0:00:39.1]} 23...
Rxe1 {[%clk 0:00:56.9]} 24. Rxe1 {[%clk 0:00:40.8]} 24... Rxe1+ {[%clk
0:00:58.3]} 25. Nxe1 {[%clk 0:00:42.7]} 25... Bxd4 {[%clk 0:00:59.8]} 26. Qe4
{[%clk 0:00:40.4]} 26... Be6 {[%clk 0:00:33.7]} 27. Qxc6 {[%clk 0:00:36.2]}
27... Qa5 {[%clk 0:00:35.1]} 28. Qa8+ {[%clk 0:00:30.7]} 28... Kg7 {[%clk
0:00:35.3]} 29. Qe4 {[%clk 0:00:31.3]} 29... Bf2 {[%clk 0:00:19.9]} 30. Nd3
{[%clk 0:00:26.4]} 30... Qxa2 {[%clk 0:00:21.2]} 31. Qe5+ {[%clk 0:00:15.6]}
31... Kg8 {[%clk 0:00:20.9]} 32. Bd5 {[%clk 0:00:07.5]} 32... Bxd5+ {[%clk
0:00:12.5]} 33. Qxd5 {[%clk 0:00:05.3]} 33... Qe2 {[%clk 0:00:06.2]} 34. Qg2
{[%clk 0:00:02.4]} 34... Qd1+ {[%clk 0:00:06.2]} 35. Qf1 {[%clk 0:00:02.8]}
35... Qxf1# {[%clk 0:00:07.3]} 0-1